Cogmind - Beta 13 *** ADVENTURER MODE // 2024.03.01 @ 22:42:24 Player: Zeddi Result: Destroyed by Y-45 Defender with Beam Rifle Performance ------------- Evolutions (1) 500 Regions Visited (3) 600 Robots Destroyed (20) 100 Value Destroyed (602) 602 Prototype IDs (5) 100 Alien Tech Used (0) 0 Bonus (0) 0 TOTAL SCORE: 1902 Bonus ------- None Cogmind --------- Core Integrity 0/400 Matter 251/300 Energy 91/100 System Corruption 0% Temperature Cool (9) Movement Walking (120) Location -9/Materials Parts ------- > --- POWER (2) -------- (None) > --- PROPULSION (2) --- Aluminum Leg Improved Aluminum Leg > --- UTILITY (3) ------ Medium Storage Unit > --- WEAPON (2) ------- Light Cannon > --- INVENTORY (10) --- Improved Aluminum Leg Improved Aluminum Leg Heat Sink Medium Battery (150) EM Pulse Gun Mining Laser Welding Torch Peak State ------------ > --- POWER ------------ Nuclear Core Nuclear Core > --- PROPULSION ------- Aluminum Leg Improved Aluminum Leg > --- UTILITY ---------- Heat Sink Medium Storage Unit Improved Terrain Scanner > --- WEAPON ----------- Medium Laser Medium Laser > --- INVENTORY -------- Aluminum Leg Heat Sink Heat Sink Medium Battery EM Pulse Gun Beam Rifle Beam Rifle Light Cannon Grenade Launcher Mining Laser [Rating: 17] Favorites ----------- Power Nuclear Core Engine Light Ion Engine Power Core Nuclear Core Propulsion Aluminum Leg Leg Aluminum Leg Utility Heat Sink Device Heat Sink Storage Medium Storage Unit Weapon Medium Laser Energy Gun Medium Laser Ballistic Gun Light Assault Rifle Ballistic Cannon Light Cannon Launcher Grenade Launcher Build | -11 -10 -10 -9 ------- Run | Yrd Mat Min Mat Slots Evolved 2 | . . . 2 Power 1 | . . . 1 Propulsion . | . . . . Utility 1 | . . . 1 Weapon . | . . . . Parts Attached 25 | 6 3 3 13 Power 5 | 1 . 1 3 Engine 2 | 1 . 1 . Core 3 | . . . 3 Reactor . | . . . . Propulsion 7 | 2 1 1 3 Treads . | . . . . Leg 7 | 2 1 1 3 Wheel . | . . . . Hover . | . . . . Flight . | . . . . Utility 5 | 1 1 . 3 Device 4 | 1 1 . 2 Storage 1 | . . . 1 Processor . | . . . . Hackware . | . . . . Protection . | . . . . Artifact . | . . . . Weapon 8 | 2 1 1 4 Energy Gun 5 | 1 1 1 2 Energy Cannon . | . . . . Ballistic Gun 1 | 1 . . . Ballistic Cannon 1 | . . . 1 Launcher 1 | . . . 1 Special Weapon . | . . . . Impact Weapon . | . . . . Slashing Weapon . | . . . . Piercing Weapon . | . . . . Special Melee Weapon . | . . . . Unidentified Prototypes . | . . . . Parts Lost 12 | . 1 . 11 Power 3 | . 1 . 2 Propulsion 1 | . . . 1 Utility 3 | . . . 3 Weapon 5 | . . . 5 Highest Loss Streak 11 | . 1 . 11 To Critical Strikes . | . . . . Average Slot Usage (%) 92 | . 83 93 95 Engine 5 | . 11 8 2 Core 10 | . . . 17 Leg 23 | . 28 28 21 Device 23 | . 15 28 24 Storage 4 | . . . 6 Energy Gun 20 | . 14 25 20 Ballistic Gun 3 | . 14 2 . Naked Turns . | . . . . Heaviest Build 30 | 6 7 9 30 Greatest Support 23 | 20 20 20 23 Greatest Overweight (x) 1 | . . . 1 Average Overweight (x) . | . . . . Largest Inventory Capacity 10 | 5 5 5 10 Average Capacity 6 | 5 5 5 8 Most Carried 10 | 5 5 5 10 Average Carried 5 | 2 4 4 6 Final Capacity 10 | 5 5 5 10 Final Carried 7 | 5 5 5 7 Class Distribution -------------------- 60% | Scavenger-Mutant 39% | Mutant Dominant Class ---------------- Mutant | -10/Materials Scavenger-Mutant | -10/Mines Scavenger-Mutant | -9/Materials Resources | -11 -10 -10 -9 ----------- Run | Yrd Mat Min Mat Matter Collected 414 | 264 34 30 86 Remotely . | . . . . Salvage Created 582 | 39 79 108 356 Parts 32 | 1 4 7 20 Haulers Intercepted . | . . . . Recyclers Shooed . | . . . . Parts Field Recycled . | . . . . Retrieved Matter . | . . . . Parts Self-Destructed . | . . . . Prevented . | . . . . Kills | -11 -10 -10 -9 ------- Run | Yrd Mat Min Mat Combat Hostiles Destroyed 14 | 1 2 2 9 Guns 9 | 1 2 2 4 AOE 4 | . . . 4 Classes Destroyed 6 | 1 . 1 4 Worker 2 | . . . 2 Tunneler 1 | . . 1 . Watcher 3 | . . . 3 Grunt 10 | 1 2 2 5 Duelist 1 | . . . 1 Sentry 3 | . . . 3 Best Kill Streak 7 | 1 1 2 7 Combat Bots Only 5 | 1 1 2 5 Max Kills in Single Turn 3 | 1 1 1 3 Gunslinging . | . . . . Exploded 2 | . . . 2 Melee . | . . . . Uniques/NPCs Destroyed . | . . . . Combat | -11 -10 -10 -9 -------- Run | Yrd Mat Min Mat Hostile Shots Fired 194 | 7 10 5 172 Missed 53 | 2 3 1 47 Damage Taken 1623 | 42 59 47 1475 Core 427 | . 9 13 405 Absorbed by Shields . | . . . . Ignored by Resistances 473 | 13 20 15 425 Core Remaining (%) 95 | 100 . 91 . Volleys Fired 49 | 4 7 5 33 Largest 2 | 2 2 2 2 Hottest 112 | 60 70 100 112 Shots Fired 90 | 8 14 10 58 Gun 81 | 8 14 10 49 Cannon 5 | . . . 5 Launcher 4 | . . . 4 Special . | . . . . Kinetic 16 | 4 7 . 5 Thermal 70 | 4 7 10 49 Explosive 4 | . . . 4 Electromagnetic . | . . . . Robot Hit Streak 32 | 8 8 12 32 Robot Miss Streak 1 | . 1 1 1 Penetration Max . | . . . . Secondary Targets 2 | . . . 2 Max Gunslinging Chain 1 | . . . 1 Shots Hit Robots 79 | 8 11 9 51 Core Hits 37 | 2 5 6 24 Critical Kills . | . . . . Critical Parts Destroyed . | . . . . Critical Strikes 3 | . . 1 2 Burn 3 | . . 1 2 Melee Attacks . | . . . . Impact . | . . . . Slashing . | . . . . Piercing . | . . . . Sneak Attacks . | . . . . Combat Hostiles . | . . . . Follow-up Attacks . | . . . . Damage Inflicted 1594 | 73 104 112 1305 Guns 841 | 73 104 112 552 Cannons 74 | . . . 74 Explosions 679 | . . . 679 Melee . | . . . . Ramming . | . . . . Kinetic 146 | 30 42 . 74 Thermal 769 | 43 62 112 552 Explosive 679 | . . . 679 Electromagnetic . | . . . . Impact . | . . . . Slashing . | . . . . Piercing . | . . . . Highest Corruption . | . . . . Average Corruption . | . . . . Corruption Purged . | . . . . Corruption Blocked . | . . . . Overload Shots . | . . . . Overflow Damage 35 | . . . 35 Projectiles . | . . . . Explosions 35 | . . . 35 Melee . | . . . . Knockbacks 1 | . . . 1 Impact . | . . . . Kinetic 1 | . . . 1 Secondary . | . . . . Self-Inflicted Damage 101 | . . . 101 Shots 5 | . . . 5 Rammed . | . . . . Targets Rammed . | . . . . Kicked . | . . . . Crushed . | . . . . Highest Temperature 352 | 32 22 2 352 Average Temperature 87 | 18 12 2 106 Received Heat Transfer 795 | 30 42 36 687 Effects 2 | . . . 2 Shutdowns 1 | . . . 1 Energy Bleed 1 | . . . 1 Siege Activations . | . . . . Robots Corrupted . | . . . . Combat Hostiles . | . . . . Parts Fried . | . . . . Impact Corruptions . | . . . . Robots Melted 1 | . . . 1 Combat Hostiles 1 | . . . 1 Parts Melted 10 | . 1 . 9 Heat Transferred 2431 | 100 185 407 1739 Parts Sabotaged . | . . . . Parts Stolen . | . . . . Parts Stripped . | . . . . Power Chain Reactions . | . . . . Alert | -11 -10 -10 -9 ------- Run | Yrd Mat Min Mat Peak Influence 258 | 20 85 98 258 Initial 31 | . 11 28 31 Average 60 | 3 44 55 74 Maximum Alert Level 1 | . . . 1 Low Security (%) 95 | 100 100 100 91 Level 1 4 | . . . 8 Level 2 . | . . . . Level 3 . | . . . . Level 4 . | . . . . Level 5 . | . . . . High Security . | . . . . Max Security . | . . . . Squads Dispatched 3 | . 1 . 2 Investigation 1 | . 1 . . Extermination . | . . . . Reinforcement 2 | . . . 2 Assault . | . . . . Garrison . | . . . . Intercept . | . . . . Searches Triggered . | . . . . Construction Impeded . | . . . . Haulers Reinforced . | . . . . Active Scanning Responses . | . . . . Cargo Convoy Interrupts . | . . . . Stealth | -11 -10 -10 -9 --------- Run | Yrd Mat Min Mat Distress Signals 3 | . 1 . 2 Communications Jammed . | . . . . Distress Signals . | . . . . Times Spotted 28 | 1 3 2 22 Peak Tracking Total 6 | 1 3 2 6 Tactical Retreats 1 | . 1 . . Traps | -11 -10 -10 -9 ------- Run | Yrd Mat Min Mat Traps Triggered 1 | . 1 . . Indirectly . | . . . . Trap Hack Attempts . | . . . . Triggered . | . . . . Disarmed . | . . . . Reprogrammed . | . . . . Reused . | . . . . Traps Extracted . | . . . . Installed . | . . . . Triggered . | . . . . Machines | -11 -10 -10 -9 ---------- Run | Yrd Mat Min Mat Machines Disabled 1 | . . . 1 Max in Single Turn 1 | . . . 1 Machines Repaired . | . . . . Machines Dismantled . | . . . . Machines Sabotaged . | . . . . Overloaded Fab Kills . | . . . . Hacking | -11 -10 -10 -9 --------- Run | Yrd Mat Min Mat Machines Accessed 4 | . 2 . 2 Terminals 3 | . 1 . 2 Fabricators . | . . . . Repair Stations . | . . . . Recycling Units 1 | . 1 . . Scanalyzers . | . . . . Garrison Access . | . . . . Total Hacks 8 | . 4 . 4 Successful 7 | . 3 . 4 Failed 1 | . 1 . . Catastrophic . | . . . . Database Lockouts . | . . . . Manual . | . . . . Terminals 7 | . 3 . 4 Fabricators . | . . . . Repair Stations . | . . . . Recycling Units 1 | . 1 . . Scanalyzers . | . . . . Garrison Access . | . . . . Terminal Hacks 7 | . 3 . 4 Prototype ID Bank 2 | . 1 . 1 Emergency Access Points 1 | . 1 . . Locate Traps 1 | . 1 . . Dispatch Records 1 | . . . 1 Recall Investigation 1 | . . . 1 Zone Layout 1 | . . . 1 Fabricator Hacks . | . . . . Repair Station Hacks . | . . . . Recycling Unit Hacks . | . . . . Scanalyzer . | . . . . Garrison Access Hacks . | . . . . Unauthorized Hacks . | . . . . Terminals . | . . . . Fabricators . | . . . . Repair Stations . | . . . . Recycling Units . | . . . . Scanalyzers . | . . . . Garrison Access . | . . . . Data Cores Recovered . | . . . . Used . | . . . . Hacking Detections 2 | . 1 . 1 Full Trace Events . | . . . . Feedback Events . | . . . . Feedback Blocked . | . . . . Robot Schematics Acquired . | . . . . Robots Built . | . . . . Authchips . | . . . . Time . | . . . . Total Robot Build Rating . | . . . . Part Schematics Acquired . | . . . . Parts Built . | . . . . Authchips . | . . . . Time . | . . . . Total Part Build Rating . | . . . . Parts Repaired . | . . . . Time . | . . . . Parts Recycled . | . . . . Recycled Matter . | . . . . Retrieved Matter . | . . . . Retrieved Components . | . . . . Parts Scanalyzed . | . . . . Part Schematics Acquired . | . . . . Parts Damaged . | . . . . Bothacking | -11 -10 -10 -9 ------------ Run | Yrd Mat Min Mat Used RIF Installer . | . . . . Robots Hacked . | . . . . Non-combat . | . . . . Combat . | . . . . Robot Hacks Applied . | . . . . Relay Couplers Released . | . . . . Fabnet Peak Effective % . | . . . . Robots Rewired . | . . . . Allies Hacked . | . . . . Hacks Repelled . | . . . . Allies | -11 -10 -10 -9 -------- Run | Yrd Mat Min Mat Total Allies . | . . . . Largest Group . | . . . . Highest-Rated Group . | . . . . Highest-Rated Ally . | . . . . Total Orders . | . . . . Ally Attacks . | . . . . Total Damage . | . . . . Kills . | . . . . Allies Corrupted . | . . . . Allies Melted . | . . . . Intel | -11 -10 -10 -9 ------- Run | Yrd Mat Min Mat Robot Analysis Total . | . . . . Derelict Logs Recovered 2 | . . 2 . Drone Launches . | . . . . Drone Recoveries . | . . . . Exploration | -11 -10 -10 -9 ------------- Run | Yrd Mat Min Mat Turns Passed 1390 | 105 246 258 781 Spaces Moved 841 | 75 184 187 395 Core 20 | 20 . . . Treads . | . . . . Legs 821 | 55 184 187 395 Wheels . | . . . . Hover . | . . . . Flight . | . . . . Fastest Speed 50 | 50 120 120 120 Average Speed 139 | 101 120 120 164 Slowest Speed 190 | 120 120 120 190 Overloaded Moves . | . . . . Propulsion Burnouts . | . . . . Robots Hopped . | . . . . Cave-ins Triggered . | . . . . Exploration Rate (%) 29 | 5 35 46 33 Regions Visited 3 Branch Regions 1 Pre-discovered Areas 1 | . . 1 . Known Exits Taken . | . . . . Unknown Exits Taken 3 | 1 1 1 . Scrap Searched 1 | . . 1 . Spaces Dug . | . . . . Terrain Destroyed 42 | . . . 42 Melee . | . . . . Projectile . | . . . . AOE 42 | . . . 42 Terrain Rammed . | . . . . Walls Destroyed . | . . . . Machines Disabled . | . . . . Actions | -11 -10 -10 -9 --------- Run | Yrd Mat Min Mat Total 974 | 97 197 211 469 Wait 28 | 2 . 13 13 Move 838 | 74 183 186 395 Hop . | . . . . Pick Up 24 | 11 1 1 11 Fast Attach 5 | . 2 2 1 Attach 15 | 6 . . 9 Detach . | . . . . Swap 5 | . 1 1 3 Drop 10 | . 3 3 4 Fire 49 | 4 7 5 33 Melee . | . . . . Ram . | . . . . Kick . | . . . . Crush . | . . . . Escape Stasis . | . . . . Rewire . | . . . . Trap . | . . . . Miscellaneous . | . . . . Route ------- -11/Scrapyard -10/Materials -10/Mines -9/Materials (discovered 1 exit: Mat) History --------- Turn | Location | Event 2 | -11/Scrapyard | Met Revision 17 70 | -11/Scrapyard | Discovered new exit (range 8) 106 | -11/Scrapyard | Entered Materials 188 | -10/Materials | Discovered new exit (range 5) 310 | -10/Materials | Build established: Mutant 352 | -10/Materials | Entered Mines 354 | -10/Mines | Met a Derelict bent on vengeance 367 | -10/Mines | Found a hidden stash of uninstalled traps 449 | -10/Mines | Learned location of 1 exit from Materials 585 | -10/Mines | Learned location of Storage (-8) 604 | -10/Mines | Discovered new exit (range 5) 610 | -10/Mines | Entered Materials 610 | -9/Materials | Evolved 2 slots: Power x1, Utility x1 611 | -9/Materials | Identified exit to Materials 765 | -9/Materials | Build established: Scavenger-Mutant 1327 | -9/Materials | Core integrity fell below 50% 1353 | -9/Materials | Core integrity fell below 20% 1391 | -9/Materials | Destroyed by Y-45 Defender with Beam Rifle Last Messages --------------- 01363_ K-01 Serf collects debris. 01363_ U-05 Engineer lays Concrete. 01365_ K-01 Serf collects debris. 01365_ Acquired Welding Torch. 01365_ Beam Rifle destroyed. 01365_ K-01 Serf collects debris. 01366_ K-01 Serf cleans the Terminal. 01366_ U-05 Engineer lays Concrete. 01368_ K-01 Serf collects debris. 01368_ Acquired 21 matter. 01368_ R-06 Scavenger collects Aluminum Leg. 01368_ U-05 Engineer lays Concrete. 01368_ K-01 Serf collects debris. 01368_ K-01 Serf destroyed. 01369_ U-05 Engineer lays Concrete. 01371_ K-01 Serf collects debris. 01372_ U-05 Engineer lays Concrete. 01372_ K-01 Serf collects debris. 01380_ G-34 Mercenary knocked back. 01386_ Heat Sink destroyed. Map ----- +----------------------------------------------------+ | ?????????????????????????????????????????????????? | | ?????????????????????????????????????????????????? | | ?????????????????????????????????????????????????? | | ?????????????????????????????????????????????????? | | ?????????????????????????????????????????????????? | | ?????????????????????????????????????????????????? | | ??????????? ????#??? ? ?????? ? ????????????????? | | ??????????????????? #?????????????#????????????? | | ????????????????#?? #????????##???#????????????? | | ?????? ?????#####?? #?#???????????# ?? # | | ????????????# ?? #??#???###??#?????"" # """ | | ????????????+ ?# ##??#?? [?#?????? Y" # """ | | ????????????# ? ###### ??????????"" # """ | | ????????????# ? ?????????? # | | ?????????#?## ? ???#?????#?#### | | ???????### # ? ? ? ????#??#?#???# | | ???????# # # ??# #?? ??#??????#?## | | ???????# ######## #?#?????#???#?#?# ##### | | ???????# % / %[ # #?##################### | | ???????# % ! "" # #### # """ """ # | | ???????# *T" # % # """ """ # | | ???????# % "" + % % % + """ """ # | | ???????# ! *% # # # | | ???????# % ######## # ! # | | ???????# # # ############ ############### | | ???? Y @ | | ??? g % | | ??? % t% a | | ???##+######+################## | | ??????????? ??????????##?????# | | ?????????? ?????????????##?#?# """" """" | | ?????????# ?? ???????????#??##" """" """" | | ?????????# ??? ??????????###??#T """" """" | | ???????? ?????????????#????####" % | | ?????????? ??? ? ?#?????#?#??# ! | | ?????#???????? ????????#???#?## | | ??##?????????? ? ??????????#??#################### | | ????#???#??? ? ???????##????????#????########?#?#? | | #?????????????#?#??????????#????#??#?# ####### | | #?#######?????########??????########?# | | ??# ?????# ! #?#????# #?# | | ??# ##?#??# #?#????# ### = | | ?## ###??# ######## ### ####### | | ??? #?#??# !! #!!//**# #?### ###?#??#? | | ??#? #????# ! #!!//**# #?#?# #??#???#? | | ????# #??#?# !# # #???# #???#???? | | ####### #########+####% ####+####### #?#?##??? | | == ##???#??? | | #########################/################???????? | | #???#?????????#??????# #????###????????????? | +----------------------------------------------------+ Best States ------------- Heat Dissipation 48 Energy Generation 23 Energy Capacity 380 Matter Stores 300 Matter Capacity 300 Sight Range 16 Terrain Scan Range 16 Terrain Scan Density 10 Resistance: KI 20 Resistance: TH 20 Resistance: EX 20 Resistance: EM 20 Resistance: I 20 Resistance: S 20 Resistance: P 20 Evasion (%) 55 Offensive Hacking 10 Item Schematics ----------------- None Robot Schematics ------------------ None Fabricated ------------ Nothing Alien Tech Used ----------------- None Achievements -------------- Let's See Who's Tougher Challenges ------------ None Game ------ Seed HugeTitaniumDiverter Manual? 0 Play Time 00:19:54 Cumulative 5.5 hours Start 2024.03.01 @ 22:23:14 End 2024.03.01 @ 22:42:24 Sessions 1 Manual Loads 0 Difficulty Adventurer Special Mode None Game No. 12 Rogue 0 Adventurer 5 Explorer 7 Win Type - Total 0 Types 0/0/0/0/0/0/0/0/0 Lore% 15 Gallery% 14 Achievement% 14 Wizard Run 0 Options --------- Layout 1 ASCII 0 Keyboard 0 Movement Mouse Keybinds 0 Fullscreen 1 Font 24/Crisp Map View 25x17 Zoom Use 74% Tactical HUD 1 Map Filters NONE Filters NONE Steam 1 RUN: 89aa2872-1447-4804-9e80-10442a7651ed